fUSD/lending_fUSD_20250911
["ID","MTS","AMOUNT","RATE_DAILY","PERIOD"]
[384928066,1757627522587,-1000.0,0.00029021,5]
[384928067,1757627522597,-1000.0,0.00029021,5]
[384928068,1757627522606,-1000.0,0.00029021,5]
[384928069,1757627522616,-1000.0,0.00029021,5]
[384928070,1757627522626,-220.36787273,0.00029041,7]
[384928071,1757627522635,-500.0,0.00029041,7]
[384928072,1757627522645,-500.0,0.00029041,7]
[384928073,1757627522655,-500.0,0.00029041,7]
[384928074,1757627522665,-150.0,0.00029041,7]
[384928075,1757627522674,-500.0,0.00029041,7]
[384928076,1757627522685,-150.0,0.00029041,7]
[384928077,1757627522694,-150.0,0.00029041,7]
[384928078,1757627522703,-500.0,0.00029041,7]
[384928079,1757627522713,-500.0,0.00029041,2]
[384928080,1757627522722,-500.0,0.00029041,7]
[384928081,1757627522732,-150.0,0.00029041,2]
[384928082,1757627522742,-500.0,0.00029041,7]
[384928083,1757627522751,-3492.0,0.00029041,7]
[384928084,1757627522762,-400.0,0.00029041,7]
[384928085,1757627522772,-400.0,0.00029041,7]
[384928086,1757627522781,-2430.85,0.00029041,7]
[384928087,1757627522790,-978.16862355,0.00029041,7]
[384928088,1757627522800,-537.34,0.00029041,7]
[384928089,1757627522809,-400.0,0.00029041,7]
[384928090,1757627522818,-436.24,0.00029041,7]
[384928091,1757627522828,-622.97,0.00029041,7]
[384928092,1757627522838,-400.0,0.00029041,7]
[384928093,1757627522847,-602.77,0.00029041,7]
[384928094,1757627522856,-1543.01,0.00029041,7]
[384928095,1757627522865,-400.0,0.00029041,7]
[384928096,1757627522875,-502.36,0.00029041,7]
[384928097,1757627522884,-474.04,0.00029041,7]
[384928098,1757627522894,-607.91,0.00029041,7]
[384928099,1757627522903,-400.0,0.00029041,7]
[384928100,1757627522913,-400.0,0.00029041,7]
[384928101,1757627522923,-422.29,0.00029041,7]
[384928102,1757627522932,-521.3,0.00029041,7]
[384928103,1757627522941,-578.72,0.00029041,7]
[384928104,1757627522950,-1554.85,0.00029041,7]
[384928105,1757627522960,-400.0,0.00029041,7]
[384928106,1757627522969,-400.0,0.00029041,7]
[384928107,1757627522979,-1824.84,0.00029041,7]
[384928108,1757627522989,-1088.02,0.00029041,7]
[384928109,1757627522998,-1205.28,0.00029041,7]
[384928110,1757627523008,-432.28,0.00029041,7]
[384928111,1757627523017,-400.0,0.00029041,7]
[384928112,1757627523027,-400.0,0.00029041,7]
[384928113,1757627523037,-832.75,0.00029041,7]
[384928114,1757627523048,-400.0,0.00029041,7]
[384928115,1757627523059,-249.68482431,0.00029041,7]
[384928116,1757627523069,-904.85,0.00029041,7]
[384928117,1757627523079,-685.8,0.00029041,7]
[384928118,1757627523088,-517.06,0.00029041,7]
[384928119,1757627523098,-1008.26,0.00029041,7]
[384928120,1757627523111,-1113.46,0.00029041,7]
[384928121,1757627523121,-400.0,0.00029041,7]
[384928122,1757627523131,-655.45,0.00029041,7]
[384928123,1757627523141,-400.0,0.00029041,7]
[384928124,1757627523155,-400.0,0.00029041,7]
[384928125,1757627523164,-593.77,0.00029041,7]
[384928126,1757627523174,-807.62,0.00029041,7]
[384928127,1757627523183,-738.23,0.00029041,7]
[384928128,1757627523193,-567.18,0.00029041,7]
[384928129,1757627523203,-485.73166049,0.00029041,7]
[384928130,1757627523212,-400.0,0.00029041,7]
[384928131,1757627523223,-400.0,0.00029041,7]
[384928132,1757627523232,-400.0,0.00029041,7]
[384928133,1757627523242,-464.24,0.00029041,7]
[384928134,1757627523251,-738.23,0.00029041,7]
[384928135,1757627523261,-400.0,0.00029041,7]
[384928136,1757627523271,-400.0,0.00029041,7]
[384928137,1757627523281,-588.76,0.00029041,7]
[384928138,1757627523290,-607.0,0.00029041,7]
[384928139,1757627523300,-400.0,0.00029041,7]
[384928140,1757627523310,-595.56,0.00029041,7]
[384928141,1757627523319,-541.07,0.00029041,7]
[384928142,1757627523329,-439.31,0.00029041,7]
[384928143,1757627523342,-400.0,0.00029041,7]
[384928144,1757627523353,-995.46,0.00029041,7]
[384928145,1757627523367,-400.0,0.00029041,7]
[384928146,1757627523379,-1889.23,0.00029041,7]
[384928147,1757627523388,-400.0,0.00029041,7]
[384928148,1757627523404,-1159.7,0.00029041,7]
[384928149,1757627523415,-404.78,0.00029041,7]
[384928150,1757627523425,-400.0,0.00029041,7]
[384928151,1757627523434,-400.0,0.00029041,7]
[384928152,1757627523444,-892.23,0.00029041,7]
[384928153,1757627523453,-400.0,0.00029041,7]
[384928154,1757627523463,-568.18,0.00029041,7]
[384928155,1757627523472,-403.03,0.00029041,7]
[384928156,1757627523481,-1401.18,0.00029041,7]
[384928157,1757627523491,-458.22,0.00029041,7]
[384928158,1757627523501,-400.0,0.00029041,7]
[384928159,1757627523510,-1506.44,0.00029041,7]
[384928160,1757627523520,-400.0,0.00029041,7]
[384928161,1757627523529,-653.84,0.00029041,7]
[384928162,1757627523538,-1579.45,0.00029041,7]
[384928163,1757627523548,-400.0,0.00029041,7]
[384928164,1757627523557,-596.11,0.00029041,7]
[384928165,1757627523567,-614.15,0.00029041,7]
[384928166,1757627523577,-400.0,0.00029041,7]
[384928167,1757627523587,-404.52940715,0.00029041,7]
[384928168,1757627523596,-400.0,0.00029041,7]
[384928169,1757627523606,-400.0,0.00029041,7]
[384928170,1757627523616,-1013.76,0.00029041,7]
[384928171,1757627523626,-400.0,0.00029041,7]
[384928172,1757627523635,-400.0,0.00029041,7]
[384928173,1757627523645,-1714.22,0.00029041,7]
[384928174,1757627523655,-517.47,0.00029041,7]
[384928175,1757627523664,-1096.07,0.00029041,7]
[384928176,1757627523673,-400.0,0.00029041,7]
[384928177,1757627523683,-1253.03,0.00029041,7]
[384928178,1757627523692,-1145.97,0.00029041,7]
[384928179,1757627523701,-434.97274072,0.00029041,7]
[384928180,1757627523711,-1745.67,0.00029041,7]
[384928181,1757627523720,-400.0,0.00029041,7]
[384928182,1757627523730,-727.42,0.00029041,7]
[384928183,1757627523739,-400.0,0.00029041,7]
[384928184,1757627523749,-400.0,0.00029041,7]
[384928185,1757627523758,-583.39,0.00029041,7]
[384928186,1757627523767,-400.0,0.00029041,7]
[384928187,1757627523777,-400.0,0.00029041,7]
[384928188,1757627523787,-576.54,0.00029041,7]
[384928189,1757627523797,-400.0,0.00029041,7]
[384928190,1757627523806,-1541.62,0.00029041,7]
[384928191,1757627523816,-921.85,0.00029041,7]
[384928192,1757627523825,-426.23,0.00029041,7]
[384928193,1757627523835,-400.0,0.00029041,7]
[384928194,1757627523844,-1433.65,0.00029041,7]
[384928195,1757627523854,-2304.65,0.00029041,7]
[384928196,1757627523863,-1278.47,0.00029041,7]
[384928197,1757627523873,-400.0,0.00029041,7]
[384928198,1757627523882,-400.0,0.00029041,7]
[384928199,1757627523891,-506.5,0.00029041,7]
[384928200,1757627523901,-400.0,0.00029041,7]
[384928201,1757627523911,-1307.66,0.00029041,7]
[384928202,1757627523920,-158.163608,0.00029041,7]
[384928203,1757627523930,-400.0,0.00029041,7]
[384928204,1757627523940,-1245.35,0.00029041,7]
[384928205,1757627523949,-1371.0,0.00029041,7]
[384928206,1757627523958,-400.0,0.00029041,7]
[384928207,1757627523968,-400.0,0.00029041,7]
[384928208,1757627523978,-400.0,0.00029041,7]
[384928209,1757627523988,-506.24,0.00029041,7]
[384928210,1757627523998,-400.0,0.00029041,7]
[384928211,1757627524008,-1050.18,0.00029041,7]
[384928212,1757627524018,-400.0,0.00029041,7]
[384928213,1757627524027,-1616.64,0.00029041,7]
[384928214,1757627524037,-1120.7,0.00029041,7]
[384928215,1757627524047,-1151.78,0.00029041,7]
[384928216,1757627524059,-521.28,0.00029041,7]
[384928217,1757627524068,-1013.69,0.00029041,7]
[384928218,1757627524078,-400.0,0.00029041,7]
[384928219,1757627524088,-634.88,0.00029041,7]
[384928220,1757627524099,-400.0,0.00029041,7]
[384928221,1757627524110,-2767.55,0.00029041,7]
[384928222,1757627524120,-1117.29,0.00029041,7]
[384928223,1757627524130,-422.28,0.00029041,7]
[384928224,1757627524140,-428.8,0.00029041,7]
[384928225,1757627524150,-511.19020337,0.00029041,7]
[384928226,1757627524160,-1735.26,0.00029041,7]
[384928227,1757627524169,-1678.88,0.00029041,7]
[384928228,1757627524178,-400.0,0.00029041,7]
[384928229,1757627524188,-400.0,0.00029041,7]
[384928230,1757627524197,-522.94,0.00029041,7]
[384928231,1757627524209,-752.82,0.00029041,7]
[384928232,1757627524219,-412.38,0.00029041,7]
[384928233,1757627524228,-400.0,0.00029041,7]
[384928234,1757627524238,-2172.72,0.00029041,7]
[384928235,1757627524247,-479.83,0.00029041,7]
[384928236,1757627524257,-400.0,0.00029041,7]
[384928237,1757627524266,-1991.58,0.00029041,7]
[384928238,1757627524276,-645.68,0.00029041,7]
[384928239,1757627524287,-684.67,0.00029041,7]
[384928240,1757627524296,-400.0,0.00029041,7]
[384928241,1757627524305,-1865.74,0.00029041,7]
[384928242,1757627524315,-1236.15,0.00029041,7]
[384928243,1757627524324,-703.53,0.00029041,7]
[384928244,1757627524336,-2285.17,0.00029041,7]
[384928245,1757627524346,-400.0,0.00029041,7]
[384928246,1757627524355,-1603.43,0.00029041,7]
[384928247,1757627524365,-321.7107382,0.00029041,7]
[384928248,1757627524374,-620.1,0.00029041,7]
[384928249,1757627524384,-1983.9,0.00029041,7]
[384928250,1757627524393,-2163.46,0.00029041,7]
[384928251,1757627524404,-941.57,0.00029041,7]
[384928252,1757627524413,-400.0,0.00029041,7]
[384928253,1757627524424,-434.84,0.00029041,7]
[384928254,1757627524433,-1569.39,0.00029041,7]
[384928255,1757627524442,-931.18,0.00029041,7]
[384928256,1757627524451,-400.0,0.00029041,7]
[384928257,1757627524460,-1230.65,0.00029041,7]
[384928258,1757627524470,-2317.42,0.00029041,7]
[384928259,1757627524479,-535.67,0.00029041,7]
[384928260,1757627524488,-644.68,0.00029041,7]
[384928261,1757627524498,-1234.23,0.00029041,7]
[384928262,1757627524507,-919.77,0.00029041,7]
[384928263,1757627524516,-1771.81,0.00029041,7]
[384928264,1757627524525,-400.0,0.00029041,7]
[384928265,1757627524534,-400.0,0.00029041,7]
[384928266,1757627524543,-400.0,0.00029041,7]
[384928267,1757627524552,-387.46058123,0.00029041,7]
[384928268,1757627524561,-508.25,0.00029041,7]
[384928269,1757627524570,-2325.79,0.00029041,7]
[384928270,1757627524579,-1609.41,0.00029041,7]
[384928271,1757627524588,-568.33,0.00029041,7]
[384928272,1757627524598,-816.93,0.00029041,7]
[384928273,1757627524607,-1798.92,0.00029041,7]
[384928274,1757627524616,-1386.18,0.00029041,7]
[384928275,1757627524625,-1213.37,0.00029041,7]
[384928276,1757627524635,-400.0,0.00029041,7]
[384928277,1757627524644,-400.0,0.00029041,7]
[384928278,1757627524654,-400.0,0.00029041,7]
[384928279,1757627524663,-1999.59,0.00029041,7]
[384928280,1757627524673,-1552.95,0.00029041,7]
[384928281,1757627524683,-400.0,0.00029041,7]
[384928282,1757627524692,-403.06,0.00029041,7]
[384928283,1757627524701,-1732.83,0.00029041,7]
[384928284,1757627524711,-400.0,0.00029041,7]
[384928285,1757627524719,-465.53,0.00029041,7]
[384928286,1757627524728,-400.0,0.00029041,7]
[384928287,1757627524738,-709.04,0.00029041,7]
[384928288,1757627524748,-955.01,0.00029041,7]
[384928289,1757627524844,-400.0,0.00029041,7]
[384928290,1757627524853,-2037.8,0.00029041,7]
[384928291,1757627524862,-400.0,0.00029041,7]
[384928292,1757627524872,-1760.98,0.00029041,7]
[384928293,1757627524881,-1465.12,0.00029041,7]
[384928294,1757627524890,-943.48,0.00029041,7]
[384928295,1757627524900,-897.82,0.00029041,7]
[384928296,1757627524909,-400.0,0.00029041,7]
[384928297,1757627524918,-737.11,0.00029041,7]
[384928298,1757627524927,-674.73,0.00029041,7]
[384928299,1757627524937,-666.9,0.00029041,7]
[384928300,1757627524946,-2358.03,0.00029041,7]
[384928301,1757627524955,-400.0,0.00029041,7]
[384928302,1757627524965,-1950.94,0.00029041,7]
[384928303,1757627524975,-2454.36,0.00029041,7]
[384928304,1757627524984,-781.35,0.00029041,7]
[384928305,1757627524994,-1589.11,0.00029041,7]
[384928306,1757627525003,-610.63,0.00029041,7]
[384928307,1757627525013,-1911.65,0.00029041,7]
[384928308,1757627525022,-645.89,0.00029041,7]
[384928309,1757627525032,-400.0,0.00029041,7]
[384928310,1757627525041,-400.0,0.00029041,7]
[384928311,1757627525050,-400.0,0.00029041,7]
[384928312,1757627525060,-429.42,0.00029041,7]
[384928313,1757627525069,-1761.27,0.00029041,7]
[384928314,1757627525078,-2211.08,0.00029041,7]
[384928315,1757627525087,-1275.46,0.00029041,7]
[384928316,1757627525096,-452.08,0.00029041,7]
[384928317,1757627525106,-903.15,0.00029041,7]
[384928318,1757627525115,-730.4,0.00029041,7]
[384928319,1757627525124,-1244.21,0.00029041,7]
[384928320,1757627525133,-1272.64,0.00029041,7]
[384928321,1757627525142,-2147.52,0.00029041,7]
[384928322,1757627525152,-1608.5,0.00029041,7]
[384928323,1757627525161,-474.19,0.00029041,7]
[384928324,1757627525170,-400.0,0.00029041,2]
[384928325,1757627525179,-468.6,0.00029041,7]
[384928326,1757627525188,-726.05,0.00029041,7]
[384928327,1757627525197,-1333.63,0.00029041,7]
[384928328,1757627525206,-2353.72,0.00029041,7]
[384928329,1757627525215,-2117.57,0.00029041,7]
[384928330,1757627525224,-410.31,0.00029041,7]
[384928331,1757627525234,-400.0,0.00029041,7]
[384928332,1757627525243,-400.0,0.00029041,7]
[384928333,1757627525252,-400.0,0.00029041,7]
[384928334,1757627525262,-792.77,0.00029041,7]
[384928335,1757627525271,-2010.24,0.00029041,7]
[384928336,1757627525280,-564.18,0.00029041,7]
[384928337,1757627525289,-1805.19,0.00029041,7]
[384928338,1757627525298,-400.0,0.00029041,7]
[384928339,1757627525307,-1520.22,0.00029041,7]
[384928340,1757627525316,-825.64,0.00029041,7]
[384928341,1757627525325,-1290.72,0.00029041,7]
[384928342,1757627525342,-1603.55,0.00029041,7]
[384928343,1757627525351,-1459.31,0.00029041,7]
[384928344,1757627525360,-2714.64,0.00029041,7]
[384928345,1757627525370,-909.86,0.00029041,7]
[384928346,1757627525379,-1370.73,0.00029041,7]
[384928347,1757627525388,-2356.36,0.00029041,7]
[384928348,1757627525397,-820.52,0.00029041,7]
[384928349,1757627525406,-1552.2,0.00029041,7]
[384928350,1757627525416,-832.81,0.00029041,7]
[384928351,1757627525425,-980.62,0.00029041,7]
[384928352,1757627525434,-436.16,0.00029041,7]
[384928353,1757627525443,-2368.21,0.00029041,7]
[384928354,1757627525453,-2310.49,0.00029041,7]
[384928355,1757627525462,-751.05,0.00029041,7]
[384928356,1757627525472,-521.56,0.00029041,7]
[384928357,1757627525481,-690.1,0.00029041,7]
[384928358,1757627525491,-614.59,0.00029041,7]
[384928359,1757627525500,-1138.65,0.00029041,7]
[384928360,1757627525509,-1234.09,0.00029041,7]
[384928361,1757627525518,-1139.8,0.00029041,7]
[384928362,1757627525528,-1357.28,0.00029041,7]
[384928363,1757627525536,-483.0,0.00029041,7]
[384928364,1757627525545,-2221.87,0.00029041,7]
[384928365,1757627525555,-764.53,0.00029041,7]
[384928366,1757627525564,-400.0,0.00029041,7]
[384928367,1757627525572,-616.29,0.00029041,7]
[384928368,1757627525581,-893.59,0.00029041,7]
[384928369,1757627525590,-497.07,0.00029041,7]
[384928370,1757627525600,-2494.05,0.00029041,7]
[384928371,1757627525609,-1961.97,0.00029041,7]
[384928372,1757627525618,-715.83,0.00029041,7]
[384928373,1757627525627,-400.0,0.00029041,7]
[384928374,1757627525636,-309.3720762,0.00029041,7]
[384928375,1757627525645,-2400.41,0.00029041,7]
[384928376,1757627525655,-400.0,0.00029041,7]
[384928377,1757627525665,-400.0,0.00029041,7]
[384928378,1757627525674,-1350.64,0.00029041,7]
[384928379,1757627525684,-400.0,0.00029041,7]
[384928380,1757627525693,-1152.15,0.00029041,7]
[384928381,1757627525702,-1942.36,0.00029041,7]
[384928382,1757627525711,-400.0,0.00029041,7]
[384928383,1757627525720,-1745.53,0.00029041,7]
[384928384,1757627525729,-400.0,0.00029041,7]
[384928385,1757627525740,-1304.87,0.00029041,7]
[384928386,1757627525749,-2239.53,0.00029041,7]
[384928387,1757627525758,-1080.41,0.00029041,7]
[384928388,1757627525767,-1587.86,0.00029041,7]
[384928389,1757627525776,-416.03895921,0.00029041,7]
[384928390,1757627525785,-772.24,0.00029041,7]
[384928391,1757627525794,-1535.99,0.00029041,7]
[384928392,1757627525804,-400.0,0.00029041,7]
[384928393,1757627525813,-1709.93,0.00029041,7]
[384928394,1757627525823,-681.33,0.00029041,7]
[384928395,1757627525832,-1405.7,0.00029041,7]
[384928396,1757627525842,-827.79,0.00029041,7]
[384928397,1757627525851,-1894.71,0.00029041,7]
[384928398,1757627525860,-1305.44,0.00029041,7]
[384928399,1757627525869,-670.2,0.00029041,7]
[384928400,1757627525878,-2336.96,0.00029041,7]
[384928401,1757627525888,-663.76,0.00029041,7]
[384928402,1757627525900,-1721.31,0.00029041,7]
[384928403,1757627525909,-209.7479559,0.00029041,7]
[384928404,1757627525919,-2672.17,0.00029041,7]
[384928405,1757627525929,-1652.48,0.00029041,7]
[384928406,1757627525938,-1555.35,0.00029041,7]
[384928407,1757627525948,-400.0,0.00029041,7]
[384928408,1757627525958,-265.59375963,0.00029041,7]
[384928409,1757627525969,-1705.56,0.00029041,7]
[384928410,1757627525978,-400.0,0.00029041,7]
[384928411,1757627525987,-400.0,0.00029041,7]
[384928412,1757627525997,-900.41,0.00029041,7]
[384928413,1757627526005,-897.52,0.00029041,7]
[384928414,1757627526015,-1924.73,0.00029041,7]
[384928415,1757627526024,-400.0,0.00029041,7]
[384928416,1757627526033,-2279.93,0.00029041,7]
[384928417,1757627526042,-2115.38,0.00029041,7]
[384928418,1757627526051,-400.0,0.00029041,7]
[384928419,1757627526060,-622.31,0.00029041,7]
[384928420,1757627526070,-1153.84,0.00029041,7]
[384928421,1757627526079,-400.0,0.00029041,7]
[384928422,1757627526087,-519.0,0.00029041,7]
[384928423,1757627526096,-1849.34,0.00029041,7]
[384928424,1757627526105,-400.0,0.00029041,7]
[384928425,1757627526114,-1244.32,0.00029041,7]
[384928426,1757627526123,-418.22,0.00029041,7]
[384928427,1757627526132,-1903.92,0.00029041,7]
[384928428,1757627526141,-926.52,0.00029041,7]
[384928429,1757627526150,-2054.75,0.00029041,7]
[384928430,1757627526159,-2269.52,0.00029041,7]
[384928431,1757627526169,-891.18,0.00029041,7]
[384928432,1757627526178,-774.47,0.00029041,7]
[384928433,1757627526187,-1816.52,0.00029041,7]
[384928434,1757627526196,-400.0,0.00029041,7]
[384928435,1757627526205,-1861.78,0.00029041,7]
[384928436,1757627526214,-1516.31,0.00029041,7]
[384928437,1757627526224,-1776.85,0.00029041,7]
[384928438,1757627526234,-400.0,0.00029041,7]
[384928439,1757627526244,-400.0,0.00029041,7]
[384928440,1757627526253,-777.81,0.00029041,7]
[384928441,1757627526263,-946.01,0.00029041,7]
[384928442,1757627526272,-1366.26,0.00029041,7]
[384928443,1757627526281,-400.0,0.00029041,7]
[384928444,1757627526291,-2170.93,0.00029041,7]
[384928445,1757627526300,-619.87,0.00029041,7]
[384928446,1757627526309,-544.78,0.00029041,7]
[384928447,1757627526319,-400.0,0.00029041,7]
[384928448,1757627526328,-2122.23,0.00029041,7]
[384928449,1757627526340,-400.0,0.00029041,7]
[384928450,1757627526350,-1168.45,0.00029041,7]
[384928451,1757627526360,-928.76,0.00029041,7]
[384928452,1757627526369,-1186.62,0.00029041,7]
[384928453,1757627526379,-1039.0,0.00029041,7]
[384928454,1757627526388,-400.0,0.00029041,7]
[384928455,1757627526397,-1372.99,0.00029041,7]
[384928456,1757627526407,-525.55,0.00029041,7]
[384928457,1757627526417,-400.0,0.00029041,7]
[384928458,1757627526426,-1647.59,0.00029041,7]
[384928459,1757627526435,-730.82,0.00029041,7]
[384928460,1757627526445,-451.69,0.00029041,7]
[384928461,1757627526455,-1488.12,0.00029041,7]
[384928462,1757627526464,-400.0,0.00029041,7]
[384928463,1757627526473,-2407.69,0.00029041,7]
[384928464,1757627526482,-400.0,0.00029041,7]
[384928465,1757627526491,-1661.64,0.00029041,7]
[384928466,1757627526501,-1847.44,0.00029041,7]
[384928467,1757627526510,-812.44,0.00029041,7]
[384928468,1757627526519,-2974.72,0.00029041,7]
[384928469,1757627526528,-2154.39,0.00029041,7]
[384928470,1757627526537,-400.0,0.00029041,7]
[384928471,1757627526546,-2409.57,0.00029041,7]
[384928472,1757627526556,-1505.1,0.00029041,7]
[384928473,1757627526565,-826.95,0.00029041,7]
[384928474,1757627526574,-2357.19,0.00029041,7]
[384928475,1757627526583,-415.59,0.00029041,7]
[384928476,1757627526592,-400.0,0.00029041,7]
[384928477,1757627526603,-1209.2,0.00029041,7]
[384928478,1757627526612,-1222.72,0.00029041,7]
[384928479,1757627526622,-2029.82,0.00029041,7]
[384928480,1757627526631,-2376.92,0.00029041,7]
[384928481,1757627526640,-1576.35,0.00029041,7]
[384928482,1757627526649,-467.93,0.00029041,7]
[384928483,1757627526659,-400.0,0.00029041,7]
[384928484,1757627526668,-400.0,0.00029041,7]
[384928485,1757627526677,-619.65,0.00029041,7]
[384928486,1757627526687,-831.1,0.00029041,7]
[384928487,1757627526696,-2286.96,0.00029041,7]
[384928488,1757627526706,-400.0,0.00029041,7]
[384928489,1757627526715,-683.59,0.00029041,7]
[384928490,1757627526724,-663.74,0.00029041,7]
[384928491,1757627526733,-400.0,0.00029041,7]
[384928492,1757627526743,-517.61,0.00029041,7]
[384928493,1757627526752,-753.25,0.00029041,7]
[384928494,1757627526762,-2533.56,0.00029041,7]
[384928495,1757627526772,-400.0,0.00029041,7]
[384928496,1757627526781,-1527.86,0.00029041,7]
[384928497,1757627526791,-400.0,0.00029041,7]
[384928498,1757627526800,-1146.83,0.00029041,7]
[384928499,1757627526809,-400.0,0.00029041,7]
[384928500,1757627526819,-1894.11,0.00029041,7]
[384928501,1757627526828,-487.19,0.00029041,7]
[384928502,1757627526838,-1816.71,0.00029041,7]
[384928503,1757627526847,-621.23,0.00029041,7]
[384928504,1757627526857,-636.93,0.00029041,7]
[384928505,1757627526866,-597.77,0.00029041,7]
[384928506,1757627526875,-1978.38,0.00029041,7]
[384928507,1757627526885,-804.92,0.00029041,7]
[384928508,1757627526894,-1032.8,0.00029041,7]
[384928509,1757627526904,-400.0,0.00029041,7]
[384928510,1757627526913,-2188.58,0.00029041,7]
[384928511,1757627526923,-1200.87,0.00029041,7]
[384928512,1757627526932,-783.81,0.00029041,7]
[384928513,1757627526942,-1046.78,0.00029041,7]
[384928514,1757627526951,-1611.77,0.00029041,7]
[384928515,1757627526960,-434.23,0.00029041,7]
[384928516,1757627526970,-400.0,0.00029041,7]
[384928517,1757627526980,-2777.49,0.00029041,7]
[384928518,1757627526989,-467.51,0.00029041,7]
[384928519,1757627526998,-2380.05,0.00029041,7]
[384928520,1757627527008,-400.0,0.00029041,7]
[384928521,1757627527017,-400.0,0.00029041,7]
[384928522,1757627527026,-432.14,0.00029041,7]
[384928523,1757627527036,-936.21,0.00029041,7]
[384928524,1757627527045,-400.0,0.00029041,7]
[384928525,1757627527055,-612.46,0.00029041,7]
[384928526,1757627527064,-619.53,0.00029041,7]
[384928527,1757627527073,-400.0,0.00029041,7]
[384928528,1757627527082,-502.36,0.00029041,7]
[384928529,1757627527092,-726.74,0.00029041,7]
[384928530,1757627527102,-708.25,0.00029041,7]
[384928531,1757627527111,-400.0,0.00029041,7]
[384928532,1757627527120,-687.63,0.00029041,7]
[384928533,1757627527129,-2492.29,0.00029041,7]
[384928534,1757627527139,-525.18,0.00029041,7]
[384928535,1757627527149,-400.0,0.00029041,7]
[384928536,1757627527158,-1811.61,0.00029041,7]
[384928537,1757627527167,-2450.83,0.00029041,7]
[384928538,1757627527176,-3678.48,0.00029041,7]
[384928539,1757627527185,-451.31,0.00029041,7]
[384928540,1757627527194,-400.0,0.00029041,7]
[384928541,1757627527204,-1480.88,0.00029041,7]
[384928542,1757627527212,-400.0,0.00029041,7]
[384928543,1757627527222,-400.0,0.00029041,7]
[384928544,1757627527232,-824.46,0.00029041,7]
[384928545,1757627527242,-400.0,0.00029041,7]
[384928546,1757627527251,-400.0,0.00029041,7]
[384928547,1757627527260,-615.43,0.00029041,7]
[384928548,1757627527269,-1426.55,0.00029041,7]
[384928549,1757627527279,-253.03947244,0.00029041,7]
[384928550,1757627527288,-1733.33,0.00029041,7]
[384928551,1757627527297,-400.0,0.00029041,7]
[384928552,1757627527306,-1444.75,0.00029041,7]
[384928553,1757627527316,-656.5,0.00029041,7]
[384928554,1757627527325,-663.82,0.00029041,7]
[384928555,1757627527339,-400.0,0.00029041,7]
[384928556,1757627527347,-1413.55,0.00029041,7]
[384928557,1757627527357,-1859.7,0.00029041,7]
[384928558,1757627527366,-400.0,0.00029041,7]
[384928559,1757627527377,-457.51010496,0.00029041,7]
[384928560,1757627527386,-1657.72,0.00029041,7]
[384928561,1757627527395,-1771.5,0.00029041,7]
[384928562,1757627527405,-400.0,0.00029041,7]
[384928563,1757627527416,-400.0,0.00029041,7]
[384928564,1757627527426,-1895.65,0.00029041,7]
[384928565,1757627527436,-1281.78,0.00029041,7]